bitfinex-derivatives/quotes_BTCF0:USTF0_20251111
["timestamp","ask_amount","ask_price","bid_price","bid_amount"]
[1762879805264,0.82920655,103650.0,103640.0,0.04499267]
[1762879806074,0.97451927,103650.0,103640.0,0.00073267]
[1762879806772,0.97651927,103650.0,103640.0,0.00073267]
[1762879806965,0.97851927,103650.0,103640.0,0.00073267]
[1762879807469,0.97851927,103650.0,103630.0,0.00014456]
[1762879807470,0.156062,103640.0,103630.0,0.00014456]
[1762879807664,1.04173566,103640.0,103630.0,0.00014456]
[1762879808066,0.1560713,103630.0,103620.0,0.03460134]
[1762879808269,0.67438496,103630.0,103620.0,0.03460134]
[1762879808473,0.67438496,103630.0,103620.0,0.13113204]
[1762879808675,0.67438496,103630.0,103620.0,0.13186471]
[1762879808977,0.80400064,103630.0,103620.0,0.13186471]
[1762879809171,0.80400064,103630.0,103620.0,0.09726337]
[1762879809473,0.80400064,103630.0,103620.0,0.02258267]
[1762879809673,0.80400064,103630.0,103620.0,0.00073267]
[1762879810266,0.1425007,103620.0,103610.0,0.15499916]
[1762879810462,0.1425007,103620.0,103610.0,0.00087723]
[1762879810463,1.17085004,103620.0,103610.0,0.00087723]
[1762879810960,1.31518947,103620.0,103610.0,0.00014456]
[1762879811173,0.15547,103610.0,103600.0,8.432e-05]
[1762879811378,0.80339934,103610.0,103600.0,8.432e-05]
[1762879811874,0.80339934,103610.0,103600.0,0.09663362]
[1762879812078,0.70685934,103610.0,103600.0,0.14247629]
[1762879812274,0.80339934,103610.0,103600.0,0.14247629]
[1762879812670,0.80339934,103610.0,103600.0,0.14547629]
[1762879813268,0.70685934,103610.0,103600.0,0.14547629]
[1762879813465,0.70685934,103610.0,103600.0,0.14747629]
[1762879813877,0.42852803,103610.0,103600.0,0.16022629]
[1762879814076,0.42852803,103610.0,103600.0,0.55562763]
[1762879814376,0.42852803,103610.0,103600.0,0.52102629]
[1762879814678,0.80999934,103610.0,103600.0,0.52102629]
[1762879814979,0.80999934,103610.0,103600.0,0.16022629]
[1762879815278,0.71345934,103610.0,103600.0,0.16022629]
[1762879815478,0.80999934,103610.0,103600.0,0.16022629]
[1762879815973,0.80999934,103610.0,103600.0,0.05092699]
[1762879816180,0.80999934,103610.0,103600.0,0.00581699]
[1762879816379,1.17079934,103610.0,103600.0,0.00581699]
[1762879816574,0.41556803,103610.0,103600.0,0.16022629]
[1762879816774,0.70049934,103610.0,103600.0,0.16022629]
[1762879817377,0.41556803,103610.0,103600.0,0.16022629]
[1762879818674,0.41556803,103610.0,103600.0,0.52102629]
[1762879819376,0.79703934,103610.0,103600.0,0.52102629]
[1762879819578,0.70049934,103610.0,103600.0,0.52102629]
[1762879820384,0.04816803,103610.0,103600.0,0.58102629]
[1762879820585,0.79996987,103630.0,103620.0,0.05954]
[1762879820879,0.79996987,103630.0,103620.0,0.04654267]
[1762879820880,1.3135806,103630.0,103620.0,0.04654267]
[1762879821078,1.3135806,103630.0,103620.0,0.14307337]
[1762879821477,1.2170566,103630.0,103620.0,0.14307337]
[1762879821676,1.2170566,103630.0,103620.0,0.15680337]
[1762879821878,0.8562566,103630.0,103620.0,0.15680337]
[1762879822185,1.2170566,103630.0,103620.0,0.15680337]
[1762879823288,1.2170566,103630.0,103620.0,0.14307337]
[1762879823587,1.3135779,103630.0,103620.0,0.04654267]
[1762879823991,1.2170566,103630.0,103620.0,0.14307337]
[1762879824491,1.313578,103630.0,103620.0,0.14307337]
[1762879825089,1.313578,103630.0,103620.0,0.02401267]
[1762879825281,1.313578,103630.0,103620.0,0.00073267]
[1762879825590,0.1535807,103620.0,103610.0,0.00014456]
[1762879825790,0.80151004,103620.0,103610.0,0.00014456]
[1762879826091,0.94580623,103620.0,103610.0,0.00014456]
[1762879827088,0.94580623,103620.0,103610.0,0.00114456]
[1762879827291,0.91416623,103620.0,103610.0,0.00214456]
[1762879827791,0.91416623,103620.0,103610.0,4.56e-06]
[1762879827992,0.11062,103610.0,103600.0,8.432e-05]
[1762879828194,1.12598934,103610.0,103600.0,8.432e-05]
[1762879828491,1.27068542,103610.0,103600.0,8.432e-05]
[1762879828892,0.1106293,103600.0,103590.0,0.00014456]
[1762879829084,0.66200934,103600.0,103590.0,0.13444583]
[1762879829286,0.80665714,103600.0,103590.0,0.15697583]
[1762879829486,0.90320644,103600.0,103590.0,0.15697583]
[1762879829884,0.90329076,103600.0,103590.0,0.15697583]
[1762879830084,0.80674146,103600.0,103590.0,0.15697583]
[1762879830288,0.90429076,103600.0,103590.0,0.15697583]
[1762879830484,0.90429076,103600.0,103590.0,0.06041723]
[1762879830689,0.90429076,103600.0,103590.0,0.00087723]
[1762879830886,0.1106386,103590.0,103580.0,0.04833134]
[1762879831190,0.1106479,103580.0,103570.0,0.14620594]
[1762879831388,0.17180882,103580.0,103570.0,0.24351591]
[1762879831581,0.01627803,103580.0,103570.0,0.24351591]
[1762879831786,0.17180882,103580.0,103570.0,0.24351591]
[1762879832485,0.17480882,103580.0,103570.0,0.24351591]
[1762879832687,0.27137672,103580.0,103570.0,0.24351591]
[1762879832888,0.30143673,103580.0,103570.0,0.24351591]
[1762879833086,0.30143673,103580.0,103570.0,0.24451591]
[1762879833288,0.30143673,103580.0,103570.0,0.20991457]
[1762879834086,0.30143673,103580.0,103570.0,0.21091457]
[1762879835396,0.39800463,103580.0,103570.0,0.21091457]
[1762879835788,0.90409393,103580.0,103570.0,0.09180727]
[1762879836701,0.90409393,103580.0,103570.0,0.0540646]
[1762879836702,0.91113393,103580.0,103570.0,0.0540646]
[1762879836893,0.91106309,103580.0,103570.0,0.08219564]
[1762879837094,0.0965773,103570.0,103560.0,0.01066654]
[1762879837395,1.25652689,103570.0,103560.0,9.636e-05]
[1762879837597,0.0965866,103560.0,103550.0,0.01373]
[1762879837895,0.88914051,103560.0,103550.0,0.01373]
[1762879838599,0.88914051,103560.0,103550.0,0.01446267]
[1762879839197,0.88914051,103560.0,103550.0,0.01373]
[1762879839396,0.0965959,103550.0,103540.0,0.12900203]
[1762879839696,0.0965959,103550.0,103530.0,0.19638629]
[1762879839697,0.0966052,103540.0,103530.0,0.16923562]
[1762879839894,0.74476193,103540.0,103530.0,0.08399313]
[1762879840100,0.88951075,103540.0,103530.0,0.08399313]
[1762879840701,0.88951075,103540.0,103530.0,0.08326046]
[1762879840895,0.88942643,103540.0,103530.0,0.06953046]
[1762879841198,0.88942643,103540.0,103530.0,6.843e-05]
[1762879841701,0.88942643,103540.0,103530.0,0.0378111]
[1762879841895,0.88951075,103540.0,103530.0,0.0378111]
[1762879842197,0.88942643,103540.0,103530.0,0.01379843]
[1762879843198,1.25702643,103540.0,103530.0,0.0378111]
[1762879843397,1.25702643,103540.0,103530.0,0.0145311]
[1762879843798,1.25702643,103540.0,103530.0,0.01379843]
[1762879843799,0.88942643,103540.0,103530.0,0.01379843]
[1762879844004,1.25702643,103540.0,103530.0,0.01379843]
[1762879845098,1.25702643,103540.0,103530.0,6.843e-05]
[1762879845404,0.0966146,103530.0,103520.0,0.01373]
[1762879845606,0.096624,103520.0,103510.0,0.10647203]
[1762879845799,1.11242073,103520.0,103510.0,0.1072047]
[1762879846002,1.25686738,103520.0,103510.0,0.1297347]
[1762879846402,1.25686738,103520.0,103510.0,0.0839247]
[1762879846403,1.25696938,103520.0,103510.0,0.0839247]
[1762879846605,1.25696938,103520.0,103510.0,0.1072047]
[1762879846906,1.36119396,103520.0,103510.0,0.1297347]
[1762879847395,1.26456996,103520.0,103510.0,0.2263679]
[1762879847596,1.36119386,103520.0,103510.0,0.2263679]
[1762879847897,1.36119386,103520.0,103510.0,0.1297347]
[1762879848212,1.36119386,103520.0,103510.0,0.2263679]
[1762879848805,0.70223832,103520.0,103510.0,0.2263679]
[1762879849005,1.06991832,103520.0,103510.0,0.2263679]
[1762879849202,0.70911832,103520.0,103510.0,0.15690587]
[1762879849412,0.51442668,103520.0,103510.0,0.5871679]
[1762879849604,0.36998003,103520.0,103510.0,0.5871679]
[1762879849906,0.367782,103520.0,103510.0,0.51770587]
[1762879850102,0.367782,103520.0,103510.0,0.60368103]
[1762879850308,0.36998003,103520.0,103510.0,0.60368103]
[1762879851810,0.36998003,103520.0,103510.0,0.51770587]
[1762879852004,0.33268003,103520.0,103510.0,0.51770587]
[1762879852206,0.5625162,103530.0,103520.0,0.1538339]
[1762879852510,0.58354039,103530.0,103520.0,0.15603193]
[1762879852812,0.58358039,103530.0,103520.0,0.51683193]
[1762879853012,0.00019531,103530.0,103520.0,0.51683193]
[1762879853206,0.36791531,103530.0,103520.0,0.51683193]
[1762879853511,0.36991531,103530.0,103520.0,0.51683193]
[1762879855316,0.37091531,103530.0,103520.0,0.51683193]
[1762879855820,0.00119531,103530.0,103520.0,0.51683193]
[1762879856015,0.36791531,103530.0,103520.0,0.51683193]
[1762879856708,0.00019531,103530.0,103520.0,0.51683193]
[1762879857713,0.00019531,103530.0,103520.0,0.71152357]
[1762879857908,0.00019531,103530.0,103520.0,0.51683193]
[1762879859211,0.19469164,103560.0,103550.0,0.1552059]
[1762879859413,0.67997462,103560.0,103550.0,0.06080803]
[1762879859714,1.46520137,103560.0,103550.0,0.06080803]
[1762879860215,1.17392313,103560.0,103550.0,0.15740393]
[1762879860414,1.00781477,103560.0,103550.0,0.51820393]
[1762879860611,0.86338802,103560.0,103550.0,0.15740393]
[1762879861117,0.86538802,103560.0,103550.0,0.15740393]
[1762879861518,0.86538802,103560.0,103550.0,0.51820393]
[1762879862013,0.86338802,103560.0,103550.0,0.15740393]
[1762879862214,0.86438802,103560.0,103550.0,0.15740393]
[1762879862412,0.86638802,103560.0,103550.0,0.51820393]
[1762879863714,0.86638802,103560.0,103550.0,0.15740393]
[1762879864018,0.91812379,103560.0,103550.0,0.15740393]
[1762879865111,0.55044379,103560.0,103550.0,0.15740393]
[1762879865317,0.91812379,103560.0,103550.0,0.15740393]
[1762879865510,0.35575215,103560.0,103550.0,0.15740393]
[1762879865717,0.30401638,103560.0,103550.0,0.51820393]
[1762879866309,0.02401638,103560.0,103550.0,0.51820393]
[1762879866510,0.00014456,103570.0,103560.0,0.1551966]
[1762879866809,0.29014456,103570.0,103560.0,0.51819463]
[1762879867620,0.4848362,103570.0,103560.0,0.51819463]
[1762879868022,0.29014456,103570.0,103560.0,0.51819463]
[1762879869917,0.04014456,103570.0,103560.0,0.51819463]
[1762879870225,0.00014456,103570.0,103560.0,0.51819463]
[1762879870817,0.05014456,103570.0,103560.0,0.51819463]
[1762879871527,0.05014456,103570.0,103560.0,0.52019463]
[1762879871710,0.22014456,103570.0,103560.0,0.52019463]
[1762879872722,0.02014456,103570.0,103560.0,0.52019463]
[1762879872923,0.00014456,103570.0,103560.0,0.52019463]
[1762879873121,0.00014456,103570.0,103560.0,0.88779463]
[1762879873322,0.12014456,103570.0,103560.0,0.88779463]
[1762879873714,0.29014456,103570.0,103560.0,0.88779463]
[1762879873914,0.00014456,103570.0,103560.0,0.88779463]
[1762879874114,0.19469164,103590.0,103580.0,0.1551779]
[1762879874314,0.6976,103590.0,103580.0,0.51817593]
[1762879874917,0.7941586,103590.0,103580.0,0.51817593]
[1762879875123,0.7951586,103590.0,103580.0,0.51817593]
[1762879875425,0.7961586,103590.0,103580.0,0.51817593]
[1762879875822,0.99085024,103590.0,103580.0,0.51817593]
[1762879876423,0.89429164,103590.0,103580.0,0.51817593]
[1762879876624,0.56429164,103590.0,103580.0,0.51817593]
[1762879876815,0.66085024,103590.0,103580.0,0.51817593]
[1762879878123,0.56429164,103590.0,103580.0,0.51817593]
[1762879878520,0.58587944,103590.0,103580.0,0.51817593]
[1762879878918,0.3911878,103590.0,103580.0,0.51817593]
[1762879879117,0.58587944,103590.0,103580.0,0.51817593]
[1762879880124,0.58487944,103590.0,103580.0,0.51817593]
[1762879880325,0.58587944,103590.0,103580.0,0.51817593]
[1762879881324,0.68243804,103590.0,103580.0,0.51817593]
[1762879881721,0.58587944,103590.0,103580.0,0.51817593]
[1762879882026,0.0235878,103590.0,103580.0,1.44118757]
[1762879883027,0.0235878,103590.0,103580.0,1.24649593]
[1762879883223,0.0225878,103590.0,103580.0,1.24649593]
[1762879883423,0.0235878,103590.0,103580.0,1.24649593]
[1762879883825,0.0225878,103590.0,103580.0,1.24649593]
[1762879884023,0.0225878,103590.0,103580.0,1.24749593]
[1762879884326,0.00014456,103600.0,103590.0,0.1550886]
[1762879884521,0.00014456,103600.0,103590.0,0.51808663]
[1762879884721,0.05188033,103600.0,103590.0,0.71277827]
[1762879884923,0.05188033,103600.0,103590.0,0.95409827]
[1762879885828,0.05188033,103600.0,103590.0,0.51808663]
[1762879886520,0.38192127,103600.0,103590.0,0.06072803]
[1762879886720,0.38192127,103600.0,103590.0,0.15728663]
[1762879886925,0.74940127,103600.0,103590.0,0.15728663]
[1762879887225,0.6976655,103600.0,103590.0,0.15728663]
[1762879887424,0.74953628,103600.0,103590.0,0.15728663]
[1762879887628,1.11033628,103600.0,103590.0,0.15728663]
[1762879887827,1.12764261,103600.0,103590.0,0.15728663]
[1762879888436,0.76884261,103600.0,103590.0,0.15728663]
[1762879889421,1.26735714,103600.0,103590.0,0.04705803]
[1762879889620,0.135368,103580.0,103570.0,0.05833456]
[1762879889926,0.135368,103580.0,103570.0,0.02497259]
[1762879889927,1.11945341,103580.0,103570.0,0.02497259]
[1762879890127,1.26342442,103580.0,103570.0,0.02497259]
[1762879890719,1.26342442,103580.0,103570.0,0.00234259]
[1762879891331,1.26342442,103580.0,103570.0,0.00014456]
[1762879892535,1.26442442,103580.0,103570.0,0.00014456]
[1762879892733,0.1353867,103560.0,103550.0,0.155126]
[1762879893029,1.25304998,103560.0,103550.0,0.06072803]
[1762879893237,1.26324998,103560.0,103550.0,0.00219803]
[1762879893423,0.135396,103550.0,103540.0,0.1551291]
[1762879893624,0.29529358,103550.0,103540.0,0.15732713]
[1762879893824,0.33008764,103550.0,103540.0,0.15732713]
[1762879894934,0.23349164,103550.0,103540.0,0.15732713]
[1762879895132,0.33008764,103550.0,103540.0,0.15732713]
[1762879895729,0.23349164,103550.0,103540.0,0.15932713]
[1762879896140,0.23349164,103550.0,103540.0,0.15732713]
[1762879896342,0.49634024,103550.0,103540.0,0.15732713]
[1762879896542,0.49634024,103550.0,103540.0,0.16032713]
[1762879896738,0.39974434,103550.0,103540.0,0.16032713]
[1762879897332,0.39974434,103550.0,103540.0,0.15832713]
[1762879898132,0.25481335,103550.0,103540.0,0.15832713]
[1762879898331,0.02132171,103550.0,103540.0,0.15832713]
[1762879898540,0.38888171,103550.0,103540.0,0.51912713]
[1762879898742,0.02132171,103550.0,103540.0,0.51912713]
[1762879899632,0.02132171,103550.0,103540.0,0.76056713]
[1762879900035,0.02132171,103550.0,103540.0,1.12812713]
[1762879900241,0.6011962,103560.0,103550.0,0.1548659]
[1762879900440,0.62249978,103560.0,103550.0,0.51786393]
[1762879901541,0.62349978,103560.0,103550.0,0.51786393]
[1762879902135,0.72008638,103560.0,103550.0,0.51786393]
[1762879902531,0.72108638,103560.0,103550.0,0.51786393]
[1762879902836,0.72008638,103560.0,103550.0,0.15706393]
[1762879903140,0.62349978,103560.0,103550.0,0.51786393]
[1762879903740,0.02344814,103560.0,103550.0,0.51786393]
[1762879904138,0.00214456,103560.0,103550.0,1.32151557]
[1762879904333,0.74710308,103590.0,103580.0,0.154838]
[1762879904538,1.13595859,103590.0,103580.0,0.15703603]
[1762879904743,1.28139034,103590.0,103580.0,0.15703603]
[1762879905344,1.28139034,103590.0,103580.0,0.06046803]
[1762879905935,1.28339034,103590.0,103580.0,0.06046803]
[1762879906339,0.67383199,103590.0,103580.0,0.15703603]
[1762879906545,0.68059199,103590.0,103580.0,0.51783603]
[1762879906736,0.68259199,103590.0,103580.0,0.51783603]
[1762879906935,0.02529551,103590.0,103580.0,0.51783603]
[1762879907545,0.02329551,103590.0,103580.0,0.51783603]
[1762879907738,0.02429551,103590.0,103580.0,0.51783603]
[1762879908845,0.02229551,103590.0,103580.0,0.51783603]
[1762879909046,0.02329551,103590.0,103580.0,0.51783603]
[1762879909242,0.02229551,103590.0,103580.0,0.51883603]
[1762879909439,0.02129551,103590.0,103580.0,0.51883603]
[1762879909640,0.02129551,103590.0,103580.0,0.51983603]
[1762879909941,0.02129551,103590.0,103580.0,0.76119603]
[1762879910141,0.02129551,103590.0,103580.0,0.51983603]
[1762879910445,0.02129551,103590.0,103580.0,0.76119603]
[1762879911341,0.02129551,103590.0,103580.0,0.51983603]
[1762879911546,0.02129551,103590.0,103580.0,0.76119603]
[1762879911747,0.02129551,103590.0,103580.0,0.51983603]
[1762879911944,0.02129551,103590.0,103580.0,0.76119603]
[1762879912336,0.06387551,103590.0,103580.0,0.51983603]
[1762879912938,0.11584035,103590.0,103580.0,0.51983603]
[1762879913144,0.21239895,103590.0,103580.0,0.51983603]
[1762879913849,0.11584035,103590.0,103580.0,0.51983603]
[1762879914748,0.09480035,103590.0,103580.0,0.51983603]
[1762879915840,0.11584035,103590.0,103580.0,0.51983603]
[1762879917950,0.09480035,103590.0,103580.0,0.51983603]
[1762879920050,0.07326035,103590.0,103580.0,0.51983603]
[1762879921653,0.09480035,103590.0,103580.0,0.51983603]
[1762879921850,0.49791862,103590.0,103580.0,0.51983603]
[1762879922156,0.44595378,103590.0,103580.0,0.15903603]
[1762879922854,0.06437551,103590.0,103580.0,0.15903603]
[1762879923264,0.43181551,103590.0,103580.0,0.51983603]
[1762879923759,0.52837421,103590.0,103580.0,0.51983603]
[1762879923947,0.81339378,103590.0,103580.0,0.51983603]
[1762879924148,0.81339378,103590.0,103580.0,0.51883603]
[1762879924349,0.81539378,103590.0,103580.0,0.51883603]
[1762879924550,0.81539378,103590.0,103580.0,0.15703603]
[1762879924854,0.81739378,103590.0,103580.0,0.15703603]
[1762879925053,0.80639378,103590.0,103580.0,0.15703603]
[1762879925253,1.16719378,103590.0,103580.0,0.15703603]
[1762879925454,1.17639378,103590.0,103580.0,0.11984603]
[1762879925859,1.17539378,103590.0,103580.0,0.11984603]
[1762879926045,1.17739378,103590.0,103580.0,0.11984603]
[1762879926250,1.17739378,103590.0,103570.0,0.47141486]
[1762879926251,0.139648,103580.0,103570.0,0.51642486]
[1762879926457,0.75068331,103580.0,103570.0,0.00234259]
[1762879927449,0.75068331,103580.0,103570.0,0.09891989]
[1762879927657,0.75068331,103580.0,103570.0,0.00234259]
[1762879927855,0.75168331,103580.0,103570.0,0.00234259]
[1762879928157,0.75268331,103580.0,103570.0,0.00234259]
[1762879928356,0.75268331,103580.0,103570.0,0.00014456]
[1762879928961,0.89676115,103580.0,103570.0,0.00014456]
[1762879930661,0.89676115,103580.0,103570.0,0.09891989]
[1762879931161,0.89676115,103580.0,103570.0,0.00234259]
[1762879931554,0.89676115,103580.0,103570.0,0.09891989]
[1762879931755,0.89676115,103580.0,103570.0,0.15720989]
[1762879931953,0.89676115,103580.0,103570.0,0.02464259]
[1762879932157,0.89676115,103580.0,103570.0,0.00234259]
[1762879932360,0.83497741,103580.0,103570.0,0.00234259]
[1762879932561,0.83497741,103580.0,103570.0,0.02464259]
[1762879933260,0.93154541,103580.0,103570.0,0.12121989]
[1762879933562,1.20245741,103580.0,103570.0,0.15720989]
[1762879934062,1.29902541,103580.0,103570.0,0.15720989]
[1762879935062,1.29902541,103580.0,103570.0,0.00234259]
[1762879935265,1.29902541,103580.0,103570.0,0.00014456]
[1762879935758,1.29902541,103580.0,103570.0,0.15720989]
[1762879936564,0.93154541,103580.0,103570.0,0.15720989]
[1762879936759,1.29902541,103580.0,103570.0,0.15720989]
[1762879936952,1.32029771,103580.0,103570.0,0.06063259]
[1762879937158,1.32029771,103580.0,103570.0,0.15720989]
[1762879937464,1.32029771,103580.0,103570.0,0.06063259]
[1762879937663,1.32029771,103580.0,103570.0,0.15720989]
[1762879938558,1.32029771,103580.0,103570.0,0.06063259]
[1762879939064,1.32029771,103580.0,103570.0,0.15720989]
[1762879939258,1.32029771,103580.0,103570.0,0.06063259]
[1762879939451,1.32029771,103580.0,103570.0,0.00014456]
[1762879939651,0.0965959,103550.0,103540.0,0.52256074]
[1762879939855,0.79171547,103550.0,103540.0,0.20734877]
[1762879940466,0.69511957,103550.0,103540.0,0.20734877]
[1762879940963,0.69511957,103550.0,103540.0,0.21034877]
[1762879941261,0.32763957,103550.0,103540.0,0.21234877]
[1762879941455,0.69511957,103550.0,103540.0,0.57314877]
[1762879941863,0.4101,103550.0,103540.0,0.57314877]
[1762879942060,0.32778413,103560.0,103550.0,0.152936]
[1762879942264,0.32778413,103560.0,103550.0,0.56781397]
[1762879942459,0.36762456,103560.0,103550.0,0.56781397]
[1762879942965,0.00014456,103560.0,103550.0,0.51593403]
[1762879943360,0.00114456,103560.0,103550.0,0.58511347]
[1762879944165,0.00214456,103560.0,103550.0,0.58511347]
[1762879944555,0.74238457,103590.0,103580.0,0.096568]
[1762879944761,0.88989808,103590.0,103580.0,0.15510603]
[1762879945064,1.03403573,103590.0,103580.0,0.15510603]
[1762879945256,0.57667073,103590.0,103580.0,0.51590603]
[1762879945867,1.321049,103590.0,103580.0,0.15510603]
[1762879946567,1.2244903,103590.0,103580.0,0.15510603]
[1762879946758,0.35203265,103590.0,103580.0,0.51590603]
[1762879946956,0.02427308,103590.0,103580.0,0.51590603]
[1762879947359,0.02327308,103590.0,103580.0,0.51590603]
[1762879947660,0.02427308,103590.0,103580.0,0.51590603]
[1762879948468,0.02327308,103590.0,103580.0,0.51590603]
[1762879949169,0.02127308,103590.0,103580.0,0.51690603]
[1762879949468,0.02127308,103590.0,103580.0,0.51790603]
[1762879949774,0.79297373,103600.0,103590.0,0.1528986]
[1762879950073,0.4115523,103600.0,103590.0,0.51589663]
[1762879950265,0.0440723,103600.0,103590.0,0.51589663]
[1762879950462,0.0651523,103600.0,103590.0,0.51589663]
[1762879950663,0.0651523,103600.0,103590.0,0.15509663]
[1762879950960,0.1617016,103600.0,103590.0,0.15509663]
[1762879951166,0.44672117,103600.0,103590.0,0.15509663]
[1762879953163,0.35017187,103600.0,103590.0,0.15509663]
[1762879953370,0.44672117,103600.0,103590.0,0.15509663]
[1762879954565,0.80752117,103600.0,103590.0,0.15509663]
[1762879955157,0.71097187,103600.0,103590.0,0.15509663]
[1762879955564,0.35017187,103600.0,103590.0,0.15509663]
[1762879958562,0.0651523,103600.0,103590.0,0.15509663]
[1762879958758,0.35017187,103600.0,103590.0,0.51589663]
[1762879958963,0.0651523,103600.0,103590.0,0.51589663]
[1762879959366,0.0440723,103600.0,103590.0,0.51589663]
[1762879959765,0.0214123,103600.0,103590.0,0.51589663]
[1762879962473,0.0214123,103600.0,103590.0,0.88333663]
[1762879964666,0.44672117,103600.0,103590.0,0.51589663]
[1762879964864,0.44672117,103600.0,103590.0,0.15509663]
[1762879965275,0.44672117,103600.0,103590.0,0.15709663]
[1762879966274,0.35017187,103600.0,103590.0,0.15709663]
[1762879966474,0.35017187,103600.0,103590.0,0.15609663]
[1762879966675,0.35017187,103600.0,103590.0,0.15509663]
[1762879967166,0.44672117,103600.0,103590.0,0.15509663]
[1762879967577,0.35017187,103600.0,103590.0,0.15509663]
[1762879967779,0.35017187,103600.0,103590.0,0.51589663]
[1762879967969,0.0651523,103600.0,103590.0,0.51589663]
[1762879968286,0.0214123,103600.0,103590.0,0.51589663]
[1762879969875,0.0214123,103600.0,103590.0,0.51689663]
[1762879970073,0.0214123,103600.0,103590.0,1.07858523]
[1762879970277,0.02065338,103600.0,103590.0,1.31990523]
[1762879970466,0.02065338,103600.0,103590.0,1.12561663]
[1762879971276,0.02065338,103600.0,103590.0,1.12661663]
[1762879971681,0.02065338,103600.0,103590.0,0.88529663]
[1762879971978,0.02065338,103600.0,103590.0,1.12661663]
[1762879972580,0.02065338,103600.0,103590.0,0.88529663]
[1762879972781,0.02065338,103600.0,103590.0,1.12661663]
[1762879973173,0.02065338,103600.0,103590.0,0.88529663]
[1762879977276,0.00014456,103610.0,103600.0,0.1561993]
[1762879977482,0.00014456,103610.0,103600.0,0.51919733]
[1762879978880,0.00014456,103610.0,103600.0,0.52019733]
[1762879979085,0.00014456,103610.0,103600.0,0.52119733]
[1762879982187,0.05196484,103630.0,103620.0,0.1561807]
[1762879982488,0.05196484,103630.0,103620.0,0.87997873]
[1762879982990,0.06921836,103630.0,103620.0,0.87997873]
[1762879983590,0.38769067,103640.0,103630.0,0.1561714]
[1762879983779,0.38769067,103640.0,103630.0,0.51916943]
[1762879984278,0.29117847,103640.0,103630.0,0.51916943]
[1762879984479,0.38769057,103640.0,103630.0,0.51916943]
[1762879984887,0.29117847,103640.0,103630.0,0.51916943]
[1762879985189,0.39069057,103640.0,103630.0,0.51916943]
[1762879985388,0.39269057,103640.0,103630.0,0.51916943]
[1762879985888,0.29617847,103640.0,103630.0,0.51916943]
[1762879986290,0.39269057,103640.0,103630.0,0.51916943]
[1762879986892,0.39269057,103640.0,103630.0,0.15836943]
[1762879987087,0.75349057,103640.0,103630.0,0.15836943]
[1762879987478,0.39269057,103640.0,103630.0,0.15836943]
[1762879987691,0.39269057,103640.0,103630.0,0.51916943]
[1762879987892,0.39269057,103640.0,103630.0,0.15836943]
[1762879988388,0.39169057,103640.0,103630.0,0.15836943]
[1762879989087,0.40539057,103640.0,103630.0,0.15836943]
[1762879989297,0.98157753,103640.0,103630.0,0.00219803]
[1762879989487,0.1102214,103630.0,103620.0,0.1423849]
[1762879989688,0.1484607,103620.0,103610.0,0.50334456]
[1762879989893,0.36384766,103620.0,103610.0,0.14474259]
[1762879991398,0.26731696,103620.0,103610.0,0.15853259]
[1762879991693,0.26007696,103620.0,103610.0,0.15953259]
[1762879991895,0.35660766,103620.0,103610.0,0.15953259]
[1762879992791,0.35660766,103620.0,103610.0,0.16053259]
[1762879993690,0.02284,103620.0,103610.0,0.52133259]
[1762879993891,0.41197,103630.0,103620.0,0.1561807]
[1762879994099,0.62735769,103630.0,103620.0,0.51917873]
[1762879994793,1.08467899,103630.0,103620.0,0.06184803]
[1762879995095,1.09937899,103630.0,103620.0,0.04805803]
[1762879995296,1.10037899,103630.0,103620.0,0.14458873]
[1762879995988,1.10037899,103630.0,103620.0,0.15837873]
[1762879996592,1.10037899,103630.0,103620.0,0.14458873]
[1762879997791,1.10037899,103630.0,103620.0,0.04805803]
[1762879998099,1.10037899,103630.0,103620.0,0.12156873]
[1762879998393,1.10037899,103630.0,103620.0,0.14458873]
[1762879999498,1.00385769,103630.0,103620.0,0.15837873]
[1762879999698,0.26207769,103630.0,103620.0,0.51917873]
[1762879999997,0.62935769,103630.0,103620.0,0.51917873]
[1762880000293,0.06778909,103630.0,103620.0,0.51917873]
[1762880000796,0.02309909,103630.0,103620.0,0.51917873]
[1762880001996,0.04526909,103630.0,103620.0,0.51917873]
[1762880002999,0.02309909,103630.0,103620.0,0.51917873]
[1762880005099,0.02309909,103630.0,103620.0,0.95470733]
[1762880005301,0.00014456,103640.0,103630.0,0.1544913]
[1762880005493,0.00014456,103640.0,103630.0,0.88472933]
[1762880006296,0.00014456,103640.0,103630.0,1.32025793]
[1762880006697,0.00014456,103640.0,103630.0,1.07901793]
[1762880006901,0.00014456,103640.0,103630.0,1.32125793]
[1762880007099,0.00014456,103640.0,103630.0,0.88572933]
[1762880007497,0.00014456,103640.0,103630.0,1.12796933]
[1762880009108,0.00014456,103640.0,103630.0,0.88672933]
[1762880009305,0.00014456,103640.0,103630.0,1.12796933]
[1762880010007,0.00014456,103640.0,103630.0,0.88672933]
[1762880011600,0.00014456,103640.0,103630.0,1.12796933]
[1762880012306,0.00014456,103640.0,103630.0,0.88672933]
[1762880012506,0.02231456,103640.0,103630.0,0.88672933]
[1762880012702,0.23948316,103640.0,103630.0,0.51948933]
[1762880013005,0.23948316,103640.0,103630.0,0.88668933]
[1762880013408,0.25243316,103640.0,103630.0,0.51948933]
[1762880013906,0.34894516,103640.0,103630.0,0.51948933]
[1762880014514,0.34894516,103640.0,103630.0,0.51848933]
[1762880014704,0.34994516,103640.0,103630.0,0.51848933]
[1762880015415,0.25343316,103640.0,103630.0,0.51748933]
[1762880015618,0.35094516,103640.0,103630.0,0.51748933]
[1762880016119,0.71810516,103640.0,103630.0,0.14286933]
[1762880016306,0.71810516,103640.0,103630.0,0.14286943]
[1762880016506,0.71810516,103640.0,103630.0,0.09871943]
[1762880016708,0.71810516,103640.0,103630.0,0.14286943]
[1762880017313,0.73910644,103640.0,103630.0,0.14286943]
[1762880017705,0.64259444,103640.0,103630.0,0.15668943]
[1762880018316,0.73910644,103640.0,103630.0,0.15668943]
[1762880019207,1.09990656,103640.0,103630.0,0.14286943]
[1762880019511,1.29419516,103640.0,103630.0,0.00219803]
[1762880019708,0.1545213,103630.0,103620.0,0.1406734]
[1762880020008,0.27329,103630.0,103620.0,0.51749143]
[1762880020213,0.26034,103630.0,103620.0,0.51749143]
[1762880020608,0.27329,103630.0,103620.0,0.15669143]
[1762880021113,0.3698113,103630.0,103620.0,0.15669143]
[1762880021310,0.3698113,103630.0,103620.0,0.15769143]
[1762880021516,0.3698114,103630.0,103620.0,0.14387143]
[1762880021718,0.27329,103630.0,103620.0,0.15769143]
[1762880022217,0.0660514,103630.0,103620.0,0.51849143]
[1762880022402,0.6275,103630.0,103620.0,0.51849143]
[1762880023117,0.4332114,103630.0,103620.0,0.51849143]
[1762880023712,0.26034,103630.0,103620.0,0.51849143]
[1762880024419,0.0660514,103630.0,103620.0,0.51849143]
[1762880024815,0.0431714,103630.0,103620.0,0.51849143]
[1762880025511,0.0660514,103630.0,103620.0,0.51849143]
[1762880025707,0.36730456,103640.0,103620.0,0.88569143]
[1762880025912,0.43336023,103640.0,103630.0,0.5152913]
[1762880026112,0.43336023,103640.0,103630.0,0.51748933]
[1762880026312,0.06620023,103640.0,103630.0,0.51748933]
[1762880026718,0.02115023,103640.0,103630.0,0.51748933]